[Event "2nd Namma Bengaluru Open-B 2025"]
[Site "Bengaluru"]
[Date "2025.04.13"]
[Round "9.9"]
[White "Subramanian, R M"]
[Black "Krishnasai Ramesh Vandanapu"]
[Result "1-0"]
[Annotator "NA"]
[ECO "B21"]
[WhiteElo "1863"]
[BlackElo "1790"]
[PlyCount "61"]
[EventDate "2025.04.10"]
[EventType "swiss"]
[EventCountry "IND"]
[SourceTitle "playchess.com"]
[Source "ChessBase"]
[SourceQuality "1"]
[TimeControl "3600+30"]

1. e4 {[%emt 0:00:17]} c5 {[%emt 0:00:04]} 2. Nc3 {[%emt 0:00:05]} e6 {[%emt 0:00:04]} 3. f4 {[%emt 0:00:12]} d5 {[%emt 0:00:05]} 4. Nf3 {[%emt 0:03:21]} dxe4 {[%emt 0:00:25]} 5. Nxe4 {[%emt 0:00:04]} Be7 {[%emt 0:01:13]} 6. g3 {[%emt 0:02:21]} Nf6 {[%emt 0:00:43]} 7. Nf2 {[%emt 0:01:07]} b6 {[%emt 0:01:43]} 8. Bg2 {[%emt 0:01:16]} Bb7 {[%emt 0:00:07]} 9. O-O {[%emt 0:00:42]} O-O {[%emt 0:00:08]} 10. b3 {[%emt 0:02:41]} Ne4 {[%emt 0:03:34]} 11. Ng4 {[%emt 0:08:25]} Nd7 {[%emt 0:06:33]} 12. Bb2 {[%emt 0:06:25]} Nef6 {[%emt 0:05:31]} 13. Nf2 {[%emt 0:10:00]} Qc7 {[%emt 0:04:10]} 14. Qe2 {[%emt 0:00:30]} a5 {[%emt 0:03:06]} 15. a4 {[%emt 0:06:51]} Rac8 {[%emt 0:04:26]} 16. d3 {[%emt 0:00:37]} Rfe8 {[%emt 0:02:53]} 17. Rae1 {[%emt 0:06:07]} Bd6 {[%emt 0:03:48]} 18. Nd1 {[%emt 0:02:11]} Bc6 {[%emt 0:12:59]} 19. Ne5 {[%emt 0:04:06]} Bxg2 {[%emt 0:01:41]} 20. Qxg2 {[%emt 0:00:21]} Bxe5 {[%emt 0:00:41]} 21. fxe5 {[%emt 0:03:01]} Nd5 {[%emt 0:00:26]} 22. Nf2 {[%emt 0:01:08]} f5 {[%emt 0:06:28]} 23. exf6 {[%emt 0:01:16]} N7xf6 {[%emt 0:00:24]} 24. Ne4 {[%emt 0:01:12]} Ng4 {[%emt 0:02:23]} 25. Qh3 {[%emt 0:01:12]} Nh6 {[%emt 0:03:22]} 26. Ng5 {[%emt 0:06:13]} e5 {[%emt 0:04:36]} 27. Rxe5 {[%emt 0:00:25]} Rxe5 {[%emt 0:00:59]} 28. Bxe5 {[%emt 0:00:02]} Qc6 {[%emt 0:00:07]} 29. Rf7 {[%emt 0:01:59]} Re8 {[%emt 0:01:48]} 30. Rxg7+ {[%emt 0:00:02]} Kf8 {[%emt 0:00:08]} 31. Nxh7# {[%emt 0:01:51]} 1-0

[Event "2nd Namma Bengaluru Open-B 2025"]
[Site "Bengaluru"]
[Date "2025.04.13"]
[Round "9.10"]
[White "Gokul G"]
[Black "Yeshas H"]
[Result "1/2-1/2"]
[Annotator "NA"]
[ECO "B15"]
[WhiteElo "1858"]
[BlackElo "1788"]
[PlyCount "110"]
[EventDate "2025.04.10"]
[EventType "swiss"]
[EventCountry "IND"]
[SourceTitle "playchess.com"]
[Source "ChessBase"]
[SourceQuality "1"]
[TimeControl "3600+30"]

1. e4 {[%emt 1:01:00]} c6 {[%emt 1:01:00]} 2. d4 {[%emt 0:00:30]} d5 {[%emt 0:00:30]} 3. Nc3 dxe4 {[%emt 0:00:30]} 4. Nxe4 Nf6 {[%emt 0:00:30]} 5. Qd3 {[%emt 0:01:30]} Nbd7 {[%emt 0:00:30]} 6. Nf3 {[%emt 0:00:30]} Nxe4 {[%emt 0:00:30]} 7. Qxe4 {[%emt 0:00:30]} Nf6 {[%emt 0:00:30]} 8. Qf4 {[%emt 0:00:30]} Qb6 {[%emt 0:00:30]} 9. Bd3 {[%emt 0:00:30]} g6 {[%emt 0:00:30]} 10. O-O {[%emt 0:00:30]} Bg7 {[%emt 0:00:30]} 11. Re1 {[%emt 0:00:30]} O-O {[%emt 0:00:30]} 12. Qh4 {[%emt 0:00:30]} Bg4 {[%emt 0:00:30]} 13. Ne5 {[%emt 0:00:30]} Be6 {[%emt 0:00:30]} 14. c3 {[%emt 0:00:30]} Rfe8 {[%emt 0:00:30]} 15. Nc4 {[%emt 0:00:30]} Bxc4 {[%emt 0:00:30]} 16. Bxc4 {[%emt 0:00:30]} Nd5 {[%emt 0:00:30]} 17. Bb3 {[%emt 0:00:30]} a5 {[%emt 0:00:30]} 18. Bh6 {[%emt 0:00:30]} a4 {[%emt 0:00:30]} 19. Bxd5 {[%emt 0:00:30]} cxd5 {[%emt 0:00:30]} 20. Rab1 {[%emt 0:00:30]} Bxh6 {[%emt 0:00:30]} 21. Qxh6 {[%emt 0:00:30]} Qf6 {[%emt 0:00:30]} 22. Re5 {[%emt 0:00:30]} e6 {[%emt 0:00:30]} 23. Rbe1 {[%emt 0:00:30]} Rec8 {[%emt 0:00:30]} 24. R1e3 {[%emt 0:00:30]} Qg7 {[%emt 0:00:30]} 25. Qh4 {[%emt 0:00:30]} Rc7 {[%emt 0:00:30]} 26. Qg4 {[%emt 0:00:30]} b5 {[%emt 0:00:30]} 27. h4 {[%emt 0:00:30]} b4 {[%emt 0:00:30]} 28. cxb4 {[%emt 0:00:30]} Rc2 {[%emt 0:00:30]} 29. Re2 {[%emt 0:00:30]} Rac8 {[%emt 0:00:30]} 30. b5 {[%emt 0:00:30]} Qh6 {[%emt 0:00:30]} 31. f4 {[%emt 0:00:30]} Qf8 {[%emt 0:00:30]} 32. a3 {[%emt 0:00:30]} Qd8 {[%emt 0:00:30]} 33. Rxc2 {[%emt 0:00:30]} Rxc2 {[%emt 0:00:30]} 34. Re2 h5 {[%emt 0:00:30]} 35. Qf3 {[%emt 0:01:00]} Rc1+ {[%emt 0:00:30]} 36. Kf2 {[%emt 0:00:30]} Qxh4+ {[%emt 0:00:30]} 37. g3 {[%emt 0:00:30]} Qh2+ {[%emt 0:00:30]} 38. Qg2 {[%emt 0:00:30]} Qxg2+ {[%emt 0:00:30]} 39. Kxg2 Rc7 {[%emt 0:00:30]} 40. b3 {[%emt 0:01:00]} axb3 {[%emt 0:00:30]} 41. Kh3 {[%emt 0:00:30]} Ra7 {[%emt 0:00:30]} 42. Rb2 {[%emt 0:00:30]} Rxa3 {[%emt 0:00:30]} 43. b6 {[%emt 0:00:30]} Ra8 {[%emt 0:00:30]} 44. Kg2 {[%emt 0:00:30]} Kf8 {[%emt 0:00:30]} 45. Kf3 {[%emt 0:00:30]} Ke7 {[%emt 0:00:30]} 46. Rxb3 {[%emt 0:00:30]} Rb8 {[%emt 0:00:30]} 47. g4 {[%emt 0:00:30]} h4 {[%emt 0:00:30]} 48. Kg2 {[%emt 0:00:30]} f6 {[%emt 0:00:30]} 49. g5 {[%emt 0:00:30]} fxg5 {[%emt 0:00:30]} 50. fxg5 Kd6 {[%emt 0:00:30]} 51. Kh3 {[%emt 0:01:00]} Kc6 {[%emt 0:00:30]} 52. Rc3+ {[%emt 0:00:30]} Kxb6 {[%emt 0:00:30]} 53. Kxh4 {[%emt 0:00:30]} Re8 {[%emt 0:00:30]} 54. Kg4 {[%emt 0:00:30]} e5 {[%emt 0:00:30]} 55. dxe5 {[%emt 0:00:30]} Rxe5 {[%emt 0:00:30]} 1/2-1/2